fUSD/lending_fUSD_20240126
["ID","MTS","AMOUNT","RATE_DAILY","PERIOD"]
[312813021,1706289046933,-7182.0,0.00024,2]
[312813022,1706289046942,-911.0,0.00024,2]
[312813023,1706289046952,-652.89,0.00024046,2]
[312813024,1706289046961,-152.62856195,0.00024202,2]
[312813025,1706289046972,-1601.67855799,0.00024383,4]
[312813026,1706289046981,-9445.68,0.00024384,2]
[312813027,1706289046990,-354.82,0.00024496,2]
[312813028,1706289047000,-654.95588568,0.00024576,2]
[312813029,1706289047011,-166.03,0.00024658,2]
[312813030,1706289047021,-250.0,0.00024658,2]
[312813031,1706289047032,-162.2,0.00024658,2]
[312813032,1706289047041,-445.20910369,0.00024721,2]
[312813033,1706289047051,-675.8,0.00024774,2]
[312813034,1706289047061,-652.89,0.00024847,2]
[312813035,1706289047073,-323.3899368,0.00025,2]
[312813036,1706289047082,-202.3461783,0.00025,2]
[312813037,1706289047091,-509.8025999,0.00025,2]
[312813038,1706289047100,-1903.14431336,0.00025,2]
[312813039,1706289047111,-935.13066472,0.00025,2]
[312813040,1706289047122,-2810.58075248,0.00025,2]
[312813041,1706289047131,-450.0,0.00025,3]
[312813042,1706289047141,-4000.0,0.00025,2]
[312813043,1706289047152,-166.03,0.0002509,2]
[312813044,1706289047161,-1801.88932676,0.000251,2]
[312813045,1706289047171,-370.36,0.00025333,2]
[312813046,1706289047180,-645.18,0.0002542,2]
[312813047,1706289047190,-166.03,0.00025523,2]
[312813048,1706289047199,-152.62856195,0.00025538,2]
[312813049,1706289047209,-3975.97,0.00025549,2]
[312813050,1706289047220,-654.95588568,0.00025592,2]
[312813051,1706289047230,-200.0,0.00025801,2]
[312813052,1706289047240,-200.0,0.00025904,2]
[312813053,1706289047249,-166.03,0.00025955,2]
[312813054,1706289047259,-4179.41888783,0.00026,2]
[312813055,1706289047268,-1255.0,0.00026038,2]
[312813056,1706289047277,-1235.0,0.00026038,2]
[312813057,1706289047286,-1934.0,0.00026038,2]
[312813058,1706289047296,-210.832,0.00026038,2]
[312813059,1706289047305,-8110.0,0.00026171,2]
[312813060,1706289047314,-5588.0,0.00026171,2]
[312813061,1706289047323,-4182.0,0.00026171,2]
[312813062,1706289047333,-7365.0,0.00026171,2]
[312813063,1706289047344,-2276.0,0.00026171,2]
[312813064,1706289047353,-2904.0,0.00026171,2]
[312813065,1706289047363,-19732.0,0.00026171,2]
[312813066,1706289047372,-1031.0,0.00026171,2]
[312813067,1706289047381,-445.20910369,0.00026317,3]
[312813068,1706289047391,-166.03,0.00026388,2]
[312813069,1706289047401,-675.8,0.00026418,2]
[312813070,1706289047411,-654.95588568,0.00026607,2]
[312813071,1706289047422,-835.0,0.00026765,2]
[312813072,1706289047432,-166.03,0.0002682,2]
[312813073,1706289047442,-152.62856195,0.00026874,2]
[312813074,1706289047452,-361.00323264,0.0002688,2]
[312813075,1706289047461,-270.92235628,0.0002688,2]
[312813076,1706289047472,-361.00323264,0.0002688,2]
[312813077,1706289047481,-270.92235628,0.0002688,2]
[312813078,1706289047491,-416.83739202,0.00027,2]
[312813079,1706289047500,-500.0,0.00027,3]
[312813080,1706289047509,-354.82,0.00027218,2]
[312813081,1706289047518,-166.03,0.00027253,2]
[312813082,1706289047527,-155.0,0.00027397,2]
[312813083,1706289047536,-660.53,0.00027397,2]
[312813084,1706289047545,-309.21,0.000274,2]
[312813085,1706289047554,-309.21,0.000274,2]
[312813086,1706289047564,-309.21,0.000274,2]
[312813087,1706289047573,-309.21,0.000274,2]
[312813088,1706289047582,-309.21,0.000274,2]
[312813089,1706289047710,-309.21,0.000274,2]
[312813090,1706289047721,-309.21,0.000274,2]
[312813091,1706289047731,-309.21,0.000274,2]
[312813092,1706289047741,-309.21,0.000274,2]
[312813093,1706289047750,-309.21,0.000274,2]
[312813094,1706289047759,-660.53,0.00027556,2]
[312813095,1706289047768,-207.0,0.0002758,2]
[312813096,1706289047778,-370.36,0.00027597,2]
[312813097,1706289047787,-654.95588568,0.00027623,2]
[312813098,1706289047796,-166.03,0.00027686,2]
[312813099,1706289047807,-660.53,0.00027714,2]
[312813100,1706289047817,-3047.33303136,0.000278,2]
[312813101,1706289047826,-580.86320423,0.000278,2]
[312813102,1706289047837,-191.60578146,0.000278,2]
[312813103,1706289047846,-660.53,0.00027872,2]
[312813104,1706289047856,-445.20910369,0.00027913,3]
[312813105,1706289047867,-691.90660157,0.00028,2]
[312813106,1706289047876,-660.53,0.0002803,2]
[312813107,1706289047887,-725.13,0.00028056,2]
[312813108,1706289047896,-675.8,0.00028061,2]
[312813109,1706289047905,-166.03,0.00028118,2]
[312813110,1706289047914,-660.53,0.00028189,2]
[312813111,1706289047924,-152.62856195,0.0002821,2]
[312813112,1706289047934,-2273.7437,0.00028245,2]
[312813113,1706289047944,-660.53,0.00028347,2]
[312813114,1706289047954,-660.53,0.00028505,2]
[312813115,1706289047963,-166.03,0.00028551,2]
[312813116,1706289047975,-645.18,0.00028597,2]
[312813117,1706289047984,-654.95588568,0.00028638,2]
[312813118,1706289047993,-1000.0,0.00028657,7]
[312813119,1706289048002,-660.53,0.00028664,2]
[312813120,1706289048011,-155.0,0.00028767,2]
[312813121,1706289048022,-660.53,0.00028822,2]
[312813122,1706289048031,-166.03,0.00028983,2]
[312813123,1706289048041,-314.73771167,0.00029,2]
[312813124,1706289048050,-326.83607157,0.00029,2]
[312813125,1706289048065,-38456.4735,0.00029,2]
[312813126,1706289048074,-550.0,0.00029,3]
[312813127,1706289048084,-209.0,0.00029038,2]
[312813128,1706289048095,-242.25128501,0.00029134,6]
[312813129,1706289048104,-460.31411633,0.00029134,6]
[312813130,1706289048114,-1000.0,0.00029134,7]
[312813131,1706289048123,-1388.87394668,0.00029134,7]
[312813132,1706289048134,-194.43697334,0.00029134,6]
[312813133,1706289048143,-532.23523405,0.00029134,6]
[312813134,1706289048153,-613.10803169,0.00029134,7]
[312813135,1706289048163,-395.49171264,0.00029134,7]
[312813136,1706289048173,-227.13718395,0.00029134,7]
[312813137,1706289048182,-1000.0,0.00029134,7]
[312813138,1706289048192,-500.0,0.00029134,7]
[312813139,1706289048202,-200.0,0.00029231,3]
[312813140,1706289048213,-721.73,0.00029275,2]
[312813141,1706289048225,-206.0,0.0002935,2]
[312813142,1706289048235,-166.03,0.00029416,2]
[312813143,1706289048246,-301.33463658,0.000295,3]
[312813144,1706289048255,-445.20910369,0.00029509,4]
[312813145,1706289048265,-152.62856195,0.00029546,2]
[312813146,1706289048274,-654.95588568,0.00029654,2]
[312813147,1706289048284,-675.8,0.00029705,2]
[312813148,1706289048293,-175.77811958,0.000298,2]
[312813149,1706289048304,-206.0,0.0002983,2]
[312813150,1706289048313,-166.03,0.00029848,2]
[312813151,1706289048323,-370.36,0.00029861,2]
[312813152,1706289048333,-354.82,0.0002994,2]
[312813153,1706289048343,-500.0,0.00029999,2]
[312813154,1706289048352,-500.0,0.00029999,2]
[312813155,1706289048362,-536.39755683,0.00029999,2]
[312813156,1706289048372,-500.0,0.00029999,2]
[312813157,1706289048381,-372.49967023,0.00029999,2]
[312813158,1706289048391,-500.0,0.00029999,2]
[312813159,1706289048400,-232.211779,0.00029999,2]
[312813160,1706289048412,-494.71015523,0.00029999,2]
[312813161,1706289048422,-268.25732693,0.00029999,2]
[312813162,1706289048433,-500.0,0.00029999,2]
[312813163,1706289048442,-500.0,0.00029999,2]
[312813164,1706289048451,-500.0,0.00029999,2]
[312813165,1706289048461,-500.0,0.00029999,2]
[312813166,1706289048472,-500.0,0.00029999,2]
[312813167,1706289048481,-500.0,0.00029999,2]
[312813168,1706289048491,-500.0,0.00029999,2]
[312813169,1706289048501,-693.05480847,0.0003,2]
[312813170,1706289048511,-155.0,0.0003,2]
[312813171,1706289048520,-374.99862499,0.0003,2]
[312813172,1706289048530,-69212.83997271,0.0003,4]
[312813173,1706289048539,-286.35815731,0.0003,2]
[312813174,1706289048550,-324.32,0.00030079,2]
[312813175,1706289048560,-154.27,0.00030137,2]
[312813176,1706289048569,-155.0,0.00030137,2]
[312813177,1706289048579,-166.03,0.00030281,2]
[312813178,1706289048588,-206.0,0.0003031,2]
[312813179,1706289048597,-654.95588568,0.00030669,2]
[312813180,1706289048606,-166.03,0.00030714,2]
[312813181,1706289048616,-206.0,0.0003079,2]
[312813182,1706289048625,-152.62856195,0.00030881,2]
[312813183,1706289048634,-600.0,0.00031,3]
[312813184,1706289048644,-445.20910369,0.00031104,5]
[312813185,1706289048654,-166.03,0.00031146,2]
[312813186,1706289048664,-20767.29836029,0.0003116,7]
[312813187,1706289048673,-12845.69678264,0.0003116,7]
[312813188,1706289048683,-10632.18850441,0.0003116,7]
[312813189,1706289048693,-531.60942522,0.0003116,3]
[312813190,1706289048703,-206.0,0.0003127,2]
[312813191,1706289048713,-154.27,0.00031507,2]
[312813192,1706289048724,-419.27,0.00031507,2]
[312813193,1706289048733,-419.27,0.00031507,2]
[312813194,1706289048743,-419.27,0.00031507,2]
[312813195,1706289048752,-152.07,0.00031507,2]
[312813196,1706289048761,-150.0,0.00031507,2]
[312813197,1706289048771,-419.27,0.00031507,2]
[312813198,1706289048781,-838.31,0.00031507,2]
[312813199,1706289048790,-155.0,0.00031507,2]
[312813200,1706289048799,-166.03,0.00031579,2]
[312813201,1706289048809,-180.0,0.00031644,2]
[312813202,1706289048819,-206.0,0.0003174,2]
[312813203,1706289048829,-206.0,0.0003174,2]
[312813204,1706289048838,-177.96,0.00031748,120]
[312813205,1706289048848,-645.18,0.00031775,2]
[312813206,1706289048857,-141842.112655,0.000318,3]
[312813207,1706289048866,-419.27,0.00031878,2]
[312813208,1706289048875,-166.03,0.00032011,2]
[312813209,1706289048885,-209.0,0.00032038,2]
[312813210,1706289048894,-370.36,0.00032125,2]
[312813211,1706289048904,-152.62856195,0.00032217,2]
[312813212,1706289048913,-206.0,0.0003222,2]
[312813213,1706289048922,-206.0,0.0003222,2]
[312813214,1706289048932,-419.27,0.00032329,2]
[312813215,1706289048942,-943.3286,0.0003237,2]
[312813216,1706289048951,-152.49370915,0.000324,2]
[312813217,1706289048960,-152.49370915,0.000324,2]
[312813218,1706289048971,-152.49370915,0.000324,2]
[312813219,1706289048980,-800.0,0.00032437,3]
[312813220,1706289048989,-500.0,0.00032438,2]
[312813221,1706289048999,-200.0,0.00032438,3]
[312813222,1706289049008,-800.0,0.00032438,3]
[312813223,1706289049018,-166.03,0.00032444,2]
[312813224,1706289049028,-202.30089417,0.000325,2]
[312813225,1706289049037,-155.0,0.00032531,4]
[312813226,1706289049047,-500.0,0.00032536,2]
[312813227,1706289049056,-500.0,0.00032536,2]
[312813228,1706289049070,-500.0,0.00032536,2]
[312813229,1706289049080,-500.0,0.00032536,2]
[312813230,1706289049089,-531.6885,0.00032536,2]
[312813231,1706289049099,-2000.0,0.000326,4]
[312813232,1706289049109,-1000.0,0.000326,2]
[312813233,1706289049119,-354.82,0.00032662,2]
[312813234,1706289049128,-751.65837137,0.0003267,2]
[312813235,1706289049137,-9958.39662042,0.00032697,2]
[312813236,1706289049146,-3005.65560172,0.00032698,4]
[312813237,1706289049156,-381.40459538,0.00032698,4]
[312813238,1706289049165,-2343.28005747,0.00032698,4]
[312813239,1706289049174,-438.91671522,0.00032698,5]
[312813240,1706289049184,-1586.52836602,0.00032698,2]
[312813241,1706289049194,-9407.9815559,0.00032698,2]
[312813242,1706289049203,-233.77013766,0.00032699,4]
[312813243,1706289049213,-813.83986363,0.00032699,2]
[312813244,1706289049223,-341.38738641,0.00032699,15]
[312813245,1706289049232,-361.00323264,0.00032699,2]
[312813246,1706289049241,-270.92235628,0.00032699,2]
[312813247,1706289049251,-361.00323264,0.00032699,2]
[312813248,1706289049260,-270.92235628,0.00032699,2]
[312813249,1706289049270,-53556.8615095,0.000327,3]
[312813250,1706289049285,-570.53983615,0.000327,3]
[312813251,1706289049297,-59999.58030009,0.000327,3]
[312813252,1706289049317,-418.678,0.000327,3]
[312813253,1706289065632,1497.64,0.00021527,2]
[312813254,1706289080786,267.15292209,0.00021493,2]
[312813255,1706289098756,267.15292209,0.00021493,2]
[312813256,1706289118810,358.52436991,0.00021493,2]
[312813257,1706289148924,1089.4261,0.00021527,2]
[312813258,1706289181349,164.34,0.00030754,120]
[312813260,1706289264909,-151.0,0.00033275,120]
[312813261,1706289264953,-169.9783178,0.00039,120]
[312813262,1706289264983,-6679.0216822,0.0004,120]
[312813318,1706290233259,-1000.0,0.00022153,2]
[312813319,1706290233269,-404.97,0.00022154,2]
[312813320,1706290233278,-199.56392096,0.00022266,2]
[312813321,1706290233287,-171.70472139,0.00022267,2]
[312813322,1706290233297,-206.0,0.00022268,2]
[312813323,1706290233307,-4279.3718956,0.00022311,2]
[312813324,1706290233450,-1108.0,0.00022425,2]
[312813325,1706290233460,-300.0,0.00022443,2]
[312813326,1706290233469,-2648.5308,0.00022772,2]
[312813327,1706290233478,-150.0,0.00022774,2]
[312813328,1706290233488,-300.0,0.00022774,2]
[312813329,1706290233497,-150.0,0.00022774,2]
[312813331,1706290233507,-488.0629,0.00022777,2]
[312813332,1706290233516,-159.56177587,0.00022887,2]
[312813333,1706290233525,-717.62,0.00022994,2]
[312813334,1706290233534,-718.17,0.00022995,2]
[312813335,1706290233543,-731.66,0.00022995,2]
[312813336,1706290233551,-731.03,0.00022995,2]
[312813337,1706290233560,-722.71,0.00022996,2]
[312813338,1706290233569,-724.49,0.00022996,2]
[312813339,1706290233578,-726.48,0.00022996,2]
[312813341,1706290233587,-551.81117507,0.00022997,2]
[312813343,1706290233599,-162.89882493,0.00022997,2]
[312813345,1706290233608,-709.94,0.00022997,2]
[312813347,1706290233617,-3171.49080888,0.00022998,2]
[312813350,1706290233630,-928.53687171,0.00022998,2]
[312813353,1706290233642,-3284.84596553,0.00022998,2]
[312813357,1706290233664,-499.95,0.00022998,2]
[312813360,1706290233676,-441.0,0.00022998,2]
[312813361,1706290233688,-728.000002,0.00022998,2]
[312813362,1706290233707,-376.9549644,0.00022998,2]
[312813363,1706290233719,-910.3533981,0.00022998,2]
[312813364,1706290233734,-530.22070722,0.00022998,2]
[312813365,1706290233744,-441.26999999,0.00022998,2]
[312813366,1706290233753,-60.27561424,0.00022998,2]
[312813367,1706290233764,-641.78023561,0.00022998,2]
[312813368,1706290233775,-11.96415015,0.00022998,2]
[312813369,1706290233784,-714.52,0.00022998,2]
[312813370,1706290233793,-155.0,0.00022999,2]
[312813371,1706290233803,-214.253502,0.00025,2]
[312813372,1706290233812,-173.83739199,0.00025,2]
[312813373,1706290233821,-1903.14431336,0.00025,2]
[312813374,1706290233831,-290.05,0.00026857,2]
[312813375,1706290233844,-209.0,0.00027279,2]
[312813376,1706290233859,-948.14,0.0002728,2]
[312813377,1706290233868,-157.79,0.00027358,2]
[312813378,1706290233878,-206.0,0.00027658,10]
[312813379,1706290233887,-155.0,0.0002812,2]
[312813380,1706290233896,-499.67,0.00028339,2]
[312813381,1706290233905,-500.0,0.0002859,7]
[312813382,1706290233915,-2705.0,0.00028627,2]
[312813383,1706290233925,-200.0,0.00028724,2]
[312813384,1706290233935,-500.0,0.00028724,2]
[312813385,1706290233944,-159.67,0.0002874,2]
[312813386,1706290233954,-168.11,0.00028804,2]
[312813387,1706290233963,-250.0,0.00028845,2]
[312813388,1706290233972,-1000.0,0.0002885,2]
[312813389,1706290233985,-275.06,0.00028853,2]
[312813390,1706290233994,-297.22,0.00028867,3]
[312813391,1706290234003,-200.0,0.00028872,2]
[312813392,1706290234013,-1852.42,0.00028877,2]
[312813393,1706290234022,-4648.03,0.00028938,2]
[312813394,1706290234031,-266.56894183,0.0002912,7]
[312813395,1706290234041,-3500.0,0.0002912,7]
[312813396,1706290234050,-500.0,0.0002912,7]
[312813397,1706290234059,-39.26736523,0.0002912,7]
[312813405,1706290237874,-865.0,0.00024,2]
[312813406,1706290237884,-305.95615342,0.0002912,7]
[312813407,1706290237896,-1000.0,0.0002912,7]
[312813408,1706290237906,-222.04754687,0.0002912,7]
[312813409,1706290237916,-231.42641287,0.0002912,7]
[312813410,1706290237926,-500.0,0.0002912,7]
[312813411,1706290237939,-450.11704487,0.0002912,7]
[312813412,1706290237949,-1000.0,0.0002912,7]
[312813413,1706290237959,-467.57626469,0.0002912,7]
[312813414,1706290237968,-1000.0,0.0002912,7]
[312813415,1706290237978,-1000.0,0.0002912,7]
[312813416,1706290237987,-433.90658948,0.0002912,7]
[312813417,1706290237996,-290.05,0.0002912,2]
[312813418,1706290238005,-2000.0,0.00029359,2]
[312813419,1706290238015,-155.0,0.0002949,2]
[312813420,1706290238025,-11184.7,0.0002954,2]
[312813421,1706290238035,-250.0,0.0002954,2]
[312813422,1706290238044,-250.0,0.00029609,2]
[312813423,1706290238053,-1228.73,0.00029635,2]
[312813424,1706290238063,-500.0,0.00029686,7]
[312813425,1706290238073,-175.77811958,0.000298,2]
[312813426,1706290238084,-155.0,0.00030063,2]
[312813427,1706290238093,-190.21,0.00030064,2]
[312813428,1706290238104,-154.27,0.00030137,2]
[312813429,1706290238115,-209.0,0.00030279,2]
[312813430,1706290238126,-159.67,0.00030383,2]
[312813431,1706290238135,-500.0,0.00030782,7]
[312813432,1706290238145,-155.0,0.0003086,2]
[312813433,1706290238155,-168.11,0.00030935,2]
[312813434,1706290238166,-374.99862499,0.00031158,2]
[312813435,1706290238176,-155.27182991,0.00031158,4]
[312813436,1706290238188,-543.55682798,0.00031159,4]
[312813437,1706290238198,-55441.14580696,0.0003116,7]
[312813438,1706290238208,-10720.50199527,0.0003116,7]
[312813439,1706290238221,-1396.83955721,0.0003116,7]
[312813440,1706290238231,-7567.78490808,0.0003116,3]
[312813441,1706290238240,-30951.82557869,0.0003116,7]
[312813442,1706290238252,-19048.17442131,0.0003116,7]
[312813444,1706290238262,-2189.45058164,0.0003116,7]
[312813448,1706290238289,-998.80882928,0.0003116,7]
[312813451,1706290238305,-275.96458678,0.0003116,7]
[312813453,1706290238316,-512.05663264,0.0003116,7]
[312813456,1706290238335,-555.99494893,0.0003116,7]
[312813458,1706290238346,-252.20924771,0.0003116,7]
[312813460,1706290238356,-290.05,0.00031384,2]
[312813463,1706290238366,-152.0,0.00031562,3]
[312813465,1706290238375,-44.44575229,0.00031647,2]
[312813467,1706290238387,-135.55424771,0.00031647,2]
[312813469,1706290238396,-561.11018765,0.00031685,3]
[312813474,1706290238441,-93.84569803,0.00031685,3]
[312813477,1706290238454,-151.79719507,0.000318,20]
[312813479,1706290238464,-526.73962831,0.00031878,7]
[312813481,1706290238473,-154.27,0.00031963,2]
[312813483,1706290238484,-159.67,0.00032027,2]
[312813485,1706290238494,-260.37340127,0.0003223,2]
[312813487,1706290238505,-600.0,0.000324,11]
[312813489,1706290238514,-152.49370917,0.000324,2]
[312813491,1706290238524,-200.0,0.00032438,3]
[312813493,1706290238534,-200.0,0.00032438,3]
[312813495,1706290238544,-800.0,0.00032438,3]
[312813497,1706290238554,-1000.0,0.00032457,2]
[312813499,1706290238564,-1300.0,0.000325,11]
[312813501,1706290238573,-411.0204,0.00032599,2]
[312813503,1706290238583,-1000.0,0.000326,2]
[312813505,1706290238592,-2000.0,0.000326,4]
[312813507,1706290238602,-159.56177587,0.000326,2]
[312813509,1706290238612,-5000.0,0.000326,3]
[312813511,1706290238622,-1900.0,0.000326,11]
[312813513,1706290238632,-186.8532154,0.000326,2]
[312813515,1706290238641,-222.60455185,0.000326,6]
[312813517,1706290238651,-152.62856195,0.000326,2]
[312813519,1706290238661,-578.19241258,0.000326,2]
[312813521,1706290238671,-193.62106809,0.000326,2]
[312813522,1706290238681,-1324.04672744,0.000326,2]
[312813523,1706290238691,-3148.06260981,0.00032698,4]
[312813524,1706290238701,-932.91942428,0.00032698,2]
[312813525,1706290238711,-432.90398637,0.00032698,4]
[312813526,1706290238720,-217.62892014,0.00032698,2]
[312813527,1706290238730,-185.58951218,0.00032698,2]
[312813528,1706290238740,-275.03879438,0.00032699,4]
[312813529,1706290238750,-699.98378464,0.00032699,5]
[312813530,1706290238760,-399.0,0.00032699,2]
[312813531,1706290238769,-19307.77778458,0.00032699,4]
[312813532,1706290238782,-723.27866073,0.00032699,4]
[312813533,1706290238793,-266.29936235,0.00032699,4]
[312813534,1706290238833,-0.020846,0.00032699,4]
[312813535,1706290238845,-1631.5164132,0.00032699,4]
[312813536,1706290238857,-636.9005323,0.00032699,4]
[312813537,1706290238888,-11614.34076802,0.00032699,4]
[312813538,1706290238898,-3000.0,0.00032699,2]
[312813539,1706290238907,-8994.1715312,0.000327,3]
[312813548,1706290240377,-1244.49629537,0.000327,3]
[312813549,1706290240389,-2262.50270725,0.000327,3]
[312813550,1706290241156,-849.95690898,0.000327,3]
[312813551,1706290241168,-4082.2482,0.000327,3]
[312813552,1706290241216,-1230.29121822,0.000327,3]
[312813553,1706290241228,-1600.65,0.000327,3]
[312813554,1706290241239,-690.03922118,0.000327,3]
[312813555,1706290241251,-1847.48931023,0.000327,3]
[312813556,1706290241262,-17281.74036797,0.000327,3]
[312813557,1706290241273,-18761.41430294,0.000327,3]
[312813558,1706290241284,-377.63072068,0.000327,3]
[312813559,1706290241330,-1801.8000008,0.000327,3]
[312813593,1706290242909,-1405.81876783,0.000327,3]
[312813595,1706290242967,-373.2497615,0.000327,3]
[312813596,1706290243025,-699.88661528,0.000327,3]
[312813597,1706290243138,-2295.84122358,0.000327,3]
[312813650,1706290246650,-209.0,0.00027289,2]
[312813652,1706290246659,-209.0,0.00030289,2]
[312813653,1706290246669,-1510.0370301,0.000326,2]
[312813654,1706290246678,-1691.32069438,0.000327,3]
[312813655,1706290246689,-2248.46080941,0.000327,3]
[312813656,1706290246700,-3191.45056,0.000327,3]
[312813657,1706290246711,-547.62,0.000327,3]
[312813658,1706290246723,-895.365,0.000327,3]
[312813659,1706290246735,-17007.73740775,0.000327,3]
[312813660,1706290246821,-301.41071916,0.000327,3]
[312813661,1706290246880,-118839.14942902,0.000327,3]
[312813689,1706290861076,9835.66,0.000305,120]
[312813691,1706291347236,-155.0,0.00022098,2]
[312813692,1706291347265,-561.51478483,0.00022099,2]
[312813693,1706291347285,-504.75379186,0.00022099,2]
[312813694,1706291347305,-1043.56158327,0.00022099,2]
[312813695,1706291347326,-33812.01447105,0.00022099,2]
[312813696,1706291347346,-171.70472139,0.000221,2]
[312813697,1706291347371,-12891.4506476,0.000221,2]
[312813704,1706291432046,-163.79257235,0.00022,2]
[312813705,1706291432056,-1051.96106366,0.00022099,2]
[312813706,1706291432066,-423.16563136,0.00022099,2]
[312813707,1706291432103,-2528.50991346,0.00022099,2]
[312813708,1706291432114,-155.0,0.000221,2]
[312813709,1706291432123,-534.13134736,0.000221,2]
[312813710,1706291432133,-155.0,0.000221,2]
[312813711,1706291432143,-1099.55565881,0.000221,2]
[312813712,1706291432153,-155.0,0.000221,2]
[312813713,1706291432162,-807.89754945,0.000221,2]
[312813714,1706291432172,-150.0,0.00022102,2]
[312813715,1706291432182,-150.0,0.0002211,2]
[312813716,1706291432190,-300.0,0.00022168,2]
[312813717,1706291432200,-163.79257231,0.00023514,2]
[312813718,1706291432208,-6464.0,0.000241,2]
[312813719,1706291432218,-210.0,0.00024312,2]
[312813720,1706291432227,-155.71180369,0.00024525,2]
[312813721,1706291432236,-287.4,0.00024658,2]
[312813722,1706291432245,-550.0,0.00025,3]
[312813723,1706291432254,-1903.14431336,0.00025,2]
[312813724,1706291432263,-287.4,0.0002509,2]
[312813725,1706291432273,-287.4,0.00025523,2]
[312813726,1706291432284,-287.4,0.00025955,2]
[312813727,1706291432292,-287.4,0.00026388,2]
[312813728,1706291432302,-733.52716987,0.00026484,2]
[312813729,1706291432311,-287.4,0.0002682,2]
[312813730,1706291432320,-273.88,0.00026837,2]
[312813731,1706291432330,-600.0,0.00027,3]
[312813733,1706291432340,-287.4,0.00027253,2]
[312813735,1706291432350,-229.967,0.00027289,2]
[312813737,1706291432361,-237.978,0.00027289,2]
[312813739,1706291432372,-287.4,0.00027686,2]
[312813741,1706291432382,-415.33342547,0.00027731,2]
[312813743,1706291432391,-1275.36842106,0.00028005,6]
[312813745,1706291432402,-2000.0,0.00028005,2]
[312813747,1706291432413,-251.68,0.0002801,2]
[312813749,1706291432424,-168.81,0.00028011,2]
[312813751,1706291432434,-192.90231929,0.00028042,2]
[312813753,1706291432444,-155.31624059,0.00028042,2]
[312813755,1706291432454,-287.4,0.00028118,2]
[312813757,1706291432464,-250.0,0.0002812,2]
[312813759,1706291432473,-250.0,0.00028178,2]
[312813761,1706291432482,-155.28,0.00028334,2]
[312813763,1706291432491,-159.78,0.00028358,2]
[312813765,1706291432500,-287.4,0.00028551,2]
[312813767,1706291432509,-250.0,0.00028591,2]
[312813769,1706291432518,-423.69,0.00028644,2]
[312813772,1706291432527,-600.0,0.00028654,2]
[312813774,1706291432537,-500.0,0.00028697,2]
[312813775,1706291432545,-423.69,0.0002881,2]
[312813777,1706291432556,-232.0,0.00028812,2]
[312813778,1706291432567,-423.69,0.00028975,2]
[312813780,1706291432576,-287.4,0.00028983,2]
[312813782,1706291432586,-650.0,0.00029,3]
[312813784,1706291432595,-251.68,0.00029046,2]
[312813785,1706291432605,-206.0,0.00029065,2]
[312813786,1706291432616,-273.88,0.00029101,2]
[312813787,1706291432625,-1908.01079952,0.0002912,7]
[312813788,1706291432634,-408.64468968,0.0002912,7]
[312813789,1706291432644,-1000.0,0.0002912,7]
[312813790,1706291432654,-1000.0,0.0002912,7]
[312813791,1706291432663,-660.09012386,0.0002912,7]
[312813792,1706291432672,-202.55267019,0.0002912,7]
[312813793,1706291432682,-1000.0,0.0002912,7]
[312813794,1706291432692,-423.69,0.00029141,2]
[312813795,1706291432701,-171.70472139,0.00029305,2]
[312813796,1706291432712,-423.69,0.00029306,2]